bitfinex-derivatives/quotes_ETHF0:USTF0_20260118
["timestamp","ask_amount","ask_price","bid_price","bid_amount"]
[1768700554567,1.32809768,3306.0,3304.9,1.11891112]
[1768700554872,1.32809768,3305.9,3304.9,1.11891112]
[1768700555060,1.32809768,3305.8,3304.9,1.11891112]
[1768700555261,1.32809768,3305.7,3304.9,1.11891112]
[1768700555464,1.32809768,3305.6,3304.9,1.11891112]
[1768700555665,1.62972656,3306.2,3304.9,1.11891112]
[1768700555865,0.26937336,3306.1,3304.9,1.11891112]
[1768700556059,1.32810022,3306.0,3304.9,1.11891112]
[1768700556358,1.32810022,3305.9,3304.9,1.11891112]
[1768700556554,1.32810022,3305.8,3304.9,1.11891112]
[1768700556756,1.32810022,3305.7,3304.9,1.11891112]
[1768700556962,1.32810022,3305.6,3304.9,1.11891112]
[1768700557261,1.62972656,3306.2,3304.9,1.11891112]
[1768700557463,0.26935146,3306.1,3304.9,1.11891112]
[1768700557761,1.32799333,3306.0,3304.9,1.11891112]
[1768700557961,1.32799333,3305.9,3304.9,1.11891112]
[1768700558165,1.32799333,3305.8,3304.9,1.11891112]
[1768700558365,1.32799333,3305.7,3304.9,1.11891112]
[1768700558665,1.32799333,3305.6,3304.9,1.11891112]
[1768700558865,1.62972656,3306.2,3304.9,1.11891112]
[1768700559070,0.2693399,3306.1,3304.9,1.11891112]
[1768700559271,1.32820637,3306.0,3304.9,1.11891112]
[1768700559463,1.32820637,3305.9,3304.9,1.11891112]
[1768700559663,1.32820637,3305.8,3304.9,1.11891112]
[1768700559861,1.32820637,3305.7,3304.9,1.11891112]
[1768700560062,1.32820637,3305.6,3304.9,1.11891112]
[1768700560270,1.62972656,3306.2,3304.9,1.11891112]
[1768700560470,0.269343,3306.1,3304.9,1.11891112]
[1768700560670,1.32822112,3306.0,3304.9,1.11891112]
[1768700560870,1.32822112,3305.9,3304.9,1.11891112]
[1768700561072,1.32822112,3305.8,3304.9,1.11891112]
[1768700561272,1.32822112,3305.7,3304.9,1.11891112]
[1768700561472,1.32822112,3305.6,3304.9,1.11891112]
[1768700561675,1.62972656,3306.2,3304.9,1.11891112]
[1768700561873,0.26934466,3306.1,3304.9,1.11891112]
[1768700562075,1.32823014,3306.0,3304.9,1.11891112]
[1768700562275,1.32823014,3305.9,3304.9,1.11891112]
[1768700562477,1.32823014,3305.8,3304.9,1.11891112]
[1768700562677,1.32823014,3305.7,3304.9,1.11891112]
[1768700562870,1.32823014,3305.6,3304.9,1.11891112]
[1768700563070,1.62972656,3306.2,3304.9,1.11891112]
[1768700563277,0.26934592,3306.1,3304.9,1.11891112]
[1768700563477,1.32823691,3306.0,3304.9,1.11891112]
[1768700563677,1.32823691,3305.9,3304.9,1.11891112]
[1768700563975,1.32823691,3305.8,3304.9,1.11891112]
[1768700564178,2.71102869,3306.3,3304.9,1.11891112]
[1768700564366,1.32822898,3306.2,3304.9,1.11891112]
[1768700564564,1.32822898,3306.1,3304.9,1.11891112]
[1768700564769,1.32822898,3306.0,3304.9,1.11891112]
[1768700564965,1.32822898,3305.9,3304.9,1.11891112]
[1768700565175,1.32822898,3305.8,3304.9,1.11891112]
[1768700565369,2.71102869,3306.3,3304.9,1.11891112]
[1768700565566,1.32824775,3306.2,3304.9,1.11891112]
[1768700565765,1.32824775,3306.1,3304.9,1.11891112]
[1768700566070,1.32824775,3306.0,3304.9,1.11891112]
[1768700566265,1.32824775,3305.9,3304.9,1.11891112]
[1768700566469,1.32824775,3305.8,3304.9,1.11891112]
[1768700566666,2.71102869,3306.3,3304.9,1.11891112]
[1768700566882,1.3282603,3306.2,3304.9,1.11891112]
[1768700567076,1.3282603,3306.1,3304.9,1.11891112]
[1768700567282,1.3282603,3306.0,3304.9,1.11891112]
[1768700567485,1.3282603,3305.9,3304.9,1.11891112]
[1768700567678,1.3282603,3305.8,3304.9,1.11891112]
[1768700567978,2.71102869,3306.3,3304.9,1.11891112]
[1768700568183,1.3283161,3306.2,3304.9,1.11891112]
[1768700568478,1.3283161,3306.1,3304.9,1.11891112]
[1768700568678,1.3283161,3306.0,3304.9,1.11891112]
[1768700568977,1.3283161,3305.9,3304.9,1.11891112]
[1768700569178,1.3283161,3305.8,3304.9,0.14188243]
[1768700569381,0.97702869,3306.1,3304.9,0.14188243]
[1768700569570,1.32839724,3306.0,3304.9,0.14188243]
[1768700569774,1.32839724,3305.9,3304.9,0.14188243]
[1768700570073,1.32839724,3305.8,3304.9,0.14188243]
[1768700570276,0.97702869,3306.1,3304.9,0.14188243]
[1768700570473,1.32847746,3306.0,3304.9,0.14188243]
[1768700570673,1.32847746,3305.9,3304.9,0.14188243]
[1768700570873,0.97702869,3306.1,3304.9,0.14188243]
[1768700570874,1.32847746,3305.8,3304.9,0.14188243]
[1768700571091,0.97702869,3306.1,3304.9,0.14188243]
[1768700571294,1.32846762,3306.0,3304.9,0.14188243]
[1768700571472,1.32846762,3305.9,3304.9,0.14188243]
[1768700571677,1.32846762,3305.8,3304.9,0.14188243]
[1768700571877,0.97702869,3306.1,3304.9,0.14188243]
[1768700572083,1.32846589,3306.0,3304.9,0.14188243]
[1768700572285,0.97702869,3306.1,3304.9,0.14188243]
[1768700572286,1.32846589,3305.9,3304.9,0.14188243]
[1768700572580,1.32846589,3305.8,3304.9,0.14188243]
[1768700572782,0.97702869,3306.1,3304.9,0.14188243]
[1768700572980,1.32845657,3306.0,3304.9,0.14188243]
[1768700573181,1.32845657,3305.9,3304.9,0.14188243]
[1768700573383,1.32845657,3305.8,3304.9,0.14188243]
[1768700573583,0.97702869,3306.1,3304.9,0.14188243]
[1768700573788,1.32844977,3306.0,3304.9,0.14188243]
[1768700573989,1.32844977,3305.9,3304.9,0.14188243]
[1768700574189,1.32844977,3305.8,3304.7,0.97702869]
[1768700574390,0.97702869,3306.1,3304.7,0.97702869]
[1768700574586,1.32842632,3306.0,3304.7,0.97702869]
[1768700574886,1.32842632,3305.9,3304.7,0.97702869]
[1768700575083,1.32842632,3305.8,3304.7,0.97702869]
[1768700575286,0.97702869,3306.1,3304.7,1.1109976]
[1768700575485,1.32841419,3306.0,3304.7,1.1109976]
[1768700575689,1.32841419,3305.9,3304.7,1.1109976]
[1768700575991,1.32841419,3305.8,3304.7,0.13396891]
[1768700576184,0.97702869,3306.1,3304.7,0.13396891]
[1768700576389,1.32840707,3306.0,3304.7,0.13396891]
[1768700576585,1.32840707,3305.9,3304.7,0.13396891]
[1768700576786,1.32840707,3305.8,3304.7,0.13396891]
[1768700576988,0.97702869,3306.1,3304.7,0.13396891]
[1768700577186,1.32840263,3306.0,3304.7,0.13396891]
[1768700577399,1.32840263,3305.9,3304.7,0.13396891]
[1768700577592,1.32840263,3305.8,3304.7,0.13396891]
[1768700577794,0.26937584,3305.7,3304.7,0.13396891]
[1768700578090,0.97702869,3305.9,3304.7,0.13396891]
[1768700578291,1.3281892,3305.8,3304.7,0.13396891]
[1768700578495,1.3281892,3305.7,3304.7,0.13396891]
[1768700578681,0.97702869,3305.9,3304.7,0.13396891]
[1768700578878,1.32814808,3305.8,3304.7,0.13396891]
[1768700579082,1.32814808,3305.7,3304.7,0.13396891]
[1768700579278,0.97702869,3305.9,3304.7,0.13396891]
[1768700579490,1.32803904,3305.8,3304.7,0.13396891]
[1768700579688,1.32803904,3305.7,3304.7,0.13396891]
[1768700579988,0.97702869,3305.9,3304.7,0.13396891]
[1768700580190,1.32803787,3305.8,3304.7,0.13396891]
[1768700580394,1.32803787,3305.7,3304.7,0.13396891]
[1768700580580,0.97702869,3305.9,3304.7,0.13396891]
[1768700580784,1.32804414,3305.8,3304.7,0.13396891]
[1768700580991,1.32804414,3305.7,3304.7,0.13396891]
[1768700581188,0.97702869,3305.9,3304.7,0.13396891]
[1768700581387,1.32799566,3305.8,3304.7,0.13396891]
[1768700581586,0.97702869,3305.5,3303.8,0.15139]
[1768700581792,0.97702869,3305.5,3304.1,0.97702869]
[1768700583299,0.13893179,3305.7,3303.8,0.15139]
[1768700583596,1.32716789,3305.6,3303.9,0.13396891]
[1768700583795,0.26913713,3305.5,3303.9,0.13396891]
[1768700583996,0.13893179,3305.7,3303.9,0.13396891]
[1768700584199,1.32716745,3305.6,3303.9,0.13396891]
[1768700584397,0.26913704,3305.5,3303.9,0.13396891]
[1768700584600,0.13893179,3305.7,3303.9,0.13396891]
[1768700584801,1.32694955,3305.6,3303.9,0.13396891]
[1768700585101,1.32694955,3305.5,3303.9,0.13396891]
[1768700585299,0.13893179,3305.7,3303.9,0.13396891]
[1768700585600,1.32673418,3305.6,3303.9,0.13396891]
[1768700585801,0.13893179,3305.7,3303.9,0.13396891]
[1768700585802,1.32673418,3305.5,3303.9,0.13396891]
[1768700585992,0.13893179,3305.7,3303.9,0.13396891]
[1768700586194,1.3267318,3305.6,3303.9,0.13396891]
[1768700586491,0.26905116,3305.5,3303.9,0.13396891]
[1768700586691,0.13893179,3305.7,3303.9,0.13396891]
[1768700586892,1.32655915,3305.6,3303.9,0.13396891]
[1768700587092,0.26901569,3305.5,3303.9,0.13396891]
[1768700587292,0.13893179,3305.7,3303.9,0.13396891]
[1768700587492,1.32642106,3305.6,3303.9,0.13396891]
[1768700587699,0.26898753,3305.5,3303.9,0.13396891]
[1768700587899,0.13893179,3305.7,3303.9,0.13396891]
[1768700588096,1.32889932,3305.6,3303.9,0.13396891]
[1768700588295,0.26898633,3305.5,3303.9,0.13396891]
[1768700588500,0.13893179,3305.7,3303.9,0.13396891]
[1768700588694,1.32878334,3305.6,3303.9,0.13396891]
[1768700588902,0.2689621,3305.5,3303.9,0.13396891]
[1768700589201,0.13893179,3305.7,3303.9,0.13396891]
[1768700589403,1.3287024,3305.6,3303.9,0.13396891]
[1768700589602,0.26895827,3305.5,3303.9,0.13396891]
[1768700589804,0.13893179,3305.7,3303.9,0.13396891]
[1768700590102,1.32868917,3305.6,3303.9,0.13396891]
[1768700590303,0.26894311,3305.5,3303.9,0.13396891]
[1768700590506,0.13893179,3305.7,3303.9,0.13396891]
[1768700590702,1.32861169,3305.6,3303.9,0.13396891]
[1768700591002,0.26892748,3305.5,3303.9,0.13396891]
[1768700591199,0.13893179,3305.7,3303.9,0.13396891]
[1768700591400,1.32856075,3305.6,3303.9,0.13396891]
[1768700591601,0.2689247,3305.5,3303.9,0.13396891]
[1768700591794,0.13893179,3305.7,3303.9,0.13396891]
[1768700591992,1.32855131,3305.6,3303.9,0.13396891]
[1768700592192,0.26891532,3305.5,3303.9,0.13396891]
[1768700592401,0.13893179,3305.7,3303.9,0.13396891]
[1768700592609,1.32850746,3305.6,3303.9,0.13396891]
[1768700592797,0.2689065,3305.5,3303.9,0.13396891]
[1768700593001,0.13893179,3305.7,3303.9,0.13396891]
[1768700593193,1.32850642,3305.6,3303.9,0.13396891]
[1768700593399,0.13893179,3305.7,3303.9,0.13396891]
[1768700593601,1.32847436,3305.6,3303.9,0.13396891]
[1768700593893,0.13893179,3305.7,3303.9,0.13396891]
[1768700594094,1.46740617,3305.6,3303.9,0.13396891]
[1768700594296,0.40783166,3305.5,3303.9,0.13396891]
[1768700594494,0.13893179,3305.5,3303.9,0.13396891]
[1768700603922,0.26904126,3305.4,3303.9,0.13396891]
[1768700604121,0.13893179,3305.5,3303.9,0.13396891]
[1768700604322,0.26904126,3305.4,3303.9,0.13396891]
[1768700604622,0.13893179,3305.5,3303.9,0.13396891]
[1768700604821,1.32940564,3305.4,3303.9,0.13396891]
[1768700605123,0.13893179,3305.5,3303.9,0.13396891]
[1768700605326,1.32954523,3305.4,3303.9,0.13396891]
[1768700605523,0.13893179,3305.5,3303.9,0.13396891]
[1768700605723,1.32957843,3305.4,3303.9,0.13396891]
[1768700606022,0.13893179,3305.5,3303.9,0.13396891]
[1768700606214,1.32957802,3305.4,3303.9,0.13396891]
[1768700606410,0.13893179,3305.5,3303.9,0.13396891]
[1768700606619,1.32979021,3305.4,3303.9,0.13396891]
[1768700606817,0.13893179,3305.5,3303.9,0.13396891]
[1768700607117,1.32979087,3305.4,3303.9,0.13396891]
[1768700607316,0.13893179,3305.5,3303.9,0.13396891]
[1768700607522,1.33006599,3305.4,3303.9,0.13396891]
[1768700607725,0.13893179,3305.5,3303.9,0.13396891]
[1768700607928,1.33006477,3305.4,3303.9,0.13396891]
[1768700608115,0.13893179,3305.5,3303.9,0.13396891]
[1768700608314,1.33020534,3305.4,3303.9,0.13396891]
[1768700608515,0.26922153,3305.3,3303.9,0.13396891]
[1768700608714,0.13893179,3305.5,3303.9,0.13396891]
[1768700608919,1.33027494,3305.4,3303.9,0.13396891]
[1768700609121,1.33024172,3305.3,3303.9,0.13396891]
[1768700609320,1.33024172,3305.2,3303.9,0.13396891]
[1768700609520,0.26926393,3305.1,3303.9,0.13396891]
[1768700609724,0.13893179,3305.5,3303.9,0.13396891]
[1768700610024,1.33036934,3305.4,3303.9,0.13396891]
[1768700610224,1.33036934,3305.3,3303.9,0.13396891]
[1768700610426,1.33036934,3305.2,3303.9,0.13396891]
[1768700610627,0.13893179,3305.5,3303.9,0.13396891]
[1768700610925,1.33026271,3305.4,3303.9,0.13396891]
[1768700611126,1.33026271,3305.3,3303.9,0.13396891]
[1768700611317,1.33026271,3305.2,3303.9,0.13396891]
[1768700611513,0.26925056,3305.1,3303.9,0.13396891]
[1768700611723,0.13893179,3305.5,3303.9,0.13396891]
[1768700611927,1.33043886,3305.4,3303.9,0.13396891]
[1768700612128,1.33043886,3305.3,3303.9,0.13396891]
[1768700612317,1.33043886,3305.2,3303.9,0.13396891]
[1768700612518,0.13893179,3305.5,3303.9,0.13396891]
[1768700612720,1.33035672,3305.4,3303.9,0.13396891]
[1768700613019,1.33035672,3305.3,3303.9,0.13396891]
[1768700613220,1.33035672,3305.2,3303.9,0.13396891]
[1768700613525,0.13893179,3305.5,3303.9,0.13396891]
[1768700613726,1.33029605,3305.4,3303.9,0.13396891]
[1768700613926,1.33029605,3305.3,3303.9,0.13396891]
[1768700614128,0.26926002,3305.2,3303.9,0.13396891]
[1768700614428,0.13893179,3305.5,3303.9,0.13396891]
[1768700614624,1.33025058,3305.4,3303.9,0.13396891]
[1768700614824,1.33025058,3305.3,3303.9,0.13396891]
[1768700615026,0.26925213,3305.2,3303.9,0.13396891]
[1768700615219,0.13893179,3305.5,3303.9,0.13396891]
[1768700615522,1.33020455,3305.4,3303.9,0.13396891]
[1768700615726,1.46302466,3305.3,3303.8,0.15139]
[1768700615926,0.26925212,3305.2,3303.8,0.15139]
[1768700628435,0.13282011,3305.3,3303.8,0.15139]
[1768700629438,0.26925552,3305.2,3303.8,0.15139]
[1768700629634,0.13282011,3305.3,3303.8,0.15139]
[1768700629836,0.26925742,3305.2,3303.8,0.15139]
[1768700630134,0.13282011,3305.3,3303.8,0.15139]
[1768700630335,0.26926008,3305.2,3303.8,0.15139]
[1768700630534,0.13282011,3305.3,3303.8,0.15139]
[1768700630733,0.26926718,3305.2,3303.8,0.15139]
[1768700630933,0.13282011,3305.3,3303.8,0.15139]
[1768700631231,0.26926717,3305.2,3303.8,0.15139]
[1768700631431,0.13282011,3305.3,3303.8,0.15139]
[1768700631632,0.26927586,3305.2,3303.8,0.15139]
[1768700631931,0.13282011,3305.3,3303.8,0.15139]
[1768700632132,0.26927586,3305.2,3303.8,0.15139]
[1768700632328,0.13282011,3305.3,3303.8,0.15139]
[1768700632529,0.26928657,3305.2,3303.8,0.15139]
[1768700632738,0.13282011,3305.3,3303.8,0.15139]
[1768700632938,0.26928613,3305.2,3303.8,0.15139]
[1768700633238,0.13282011,3305.3,3303.8,0.15139]
[1768700633440,0.26928615,3305.2,3303.8,0.15139]
[1768700633639,0.13282011,3305.3,3303.8,0.15139]
[1768700633938,0.26929887,3305.2,3303.8,0.15139]
[1768700634136,0.13282011,3305.3,3303.8,0.15139]
[1768700634431,0.26929887,3305.2,3303.8,0.15139]
[1768700634639,0.13282011,3305.3,3303.8,0.15139]
[1768700634824,0.26932636,3305.2,3303.8,0.15139]
[1768700635028,0.13282011,3305.3,3303.8,0.15139]
[1768700635238,0.26932719,3305.2,3303.9,0.1420828]
[1768700635540,0.13144091,3305.7,3303.9,0.1420828]
[1768700635738,1.33245971,3305.6,3303.9,0.1420828]
[1768700635940,1.33245971,3305.5,3303.9,0.1420828]
[1768700636141,1.33245971,3305.4,3303.9,0.1420828]
[1768700636339,1.33248351,3305.3,3303.9,0.1420828]
[1768700636539,1.33248351,3305.2,3303.9,0.1420828]
[1768700636833,0.13144091,3305.7,3303.9,0.1420828]
[1768700637039,1.33256512,3305.6,3303.9,0.1420828]
[1768700637242,1.33256512,3305.5,3303.9,0.1420828]
[1768700637440,1.33256512,3305.4,3303.9,0.1420828]
[1768700637640,1.33256512,3305.3,3303.9,0.1420828]
[1768700637842,0.26937011,3305.2,3303.9,0.1420828]
[1768700638141,0.13144091,3305.7,3303.9,0.1420828]
[1768700638338,1.33288399,3305.6,3303.9,0.1420828]
[1768700638536,1.33288399,3305.5,3303.9,0.1420828]
[1768700638737,1.33288399,3305.4,3303.9,0.1420828]
[1768700639044,1.33288399,3305.3,3303.9,0.1420828]
[1768700639344,1.33300002,3305.2,3303.9,0.1420828]
[1768700639541,0.13144091,3305.7,3303.9,0.1420828]
[1768700639745,1.333058,3305.6,3303.9,0.1420828]
[1768700640044,1.333058,3305.5,3303.9,0.1420828]
[1768700640243,1.333058,3305.4,3303.9,0.1420828]
[1768700640437,1.333058,3305.3,3303.9,0.1420828]
[1768700640639,1.333058,3305.2,3303.9,0.1420828]
[1768700640839,0.13144091,3305.7,3303.9,0.1420828]
[1768700641040,1.33304754,3305.6,3303.9,0.1420828]
[1768700641240,1.33304754,3305.5,3303.9,0.1420828]
[1768700641442,1.33304754,3305.4,3303.9,0.1420828]
[1768700641642,1.33304754,3305.3,3303.9,0.1420828]
[1768700641843,0.2694584,3305.2,3303.9,0.1420828]
[1768700642044,0.13144091,3305.7,3303.9,0.1420828]
[1768700642246,1.33301131,3305.6,3303.9,0.1420828]
[1768700642541,1.33301131,3305.5,3303.9,0.1420828]
[1768700642743,1.33301131,3305.4,3303.9,0.1420828]
[1768700642942,1.33301131,3305.3,3303.9,0.1420828]
[1768700643145,0.26945104,3305.2,3303.9,0.1420828]
[1768700643344,0.13144091,3305.7,3304.3,0.97749893]
[1768700643650,0.26944146,3305.6,3304.3,0.97749893]
[1768700643844,1.33296491,3305.5,3304.3,0.97749893]
[1768700644046,1.33296491,3305.4,3304.3,0.97749893]
[1768700644246,1.33296491,3305.3,3304.3,0.97749893]
[1768700644548,1.33296491,3305.2,3304.3,0.97749893]
[1768700644751,0.26944146,3305.1,3304.3,0.97749893]
[1768700644940,1.76116747,3305.7,3304.3,0.97749893]
[1768700645142,1.33294821,3305.6,3304.3,0.97749893]
[1768700645342,1.33294821,3305.5,3304.3,0.97749893]
[1768700645542,1.33294821,3305.4,3304.3,0.97749893]
[1768700645841,1.33294821,3305.3,3304.3,0.97749893]
[1768700646044,1.33294821,3305.2,3304.3,0.97749893]
[1768700646247,0.13144091,3305.7,3304.3,0.97749893]
[1768700646552,1.3329354,3305.6,3304.3,0.97749893]
[1768700646747,1.3329354,3305.5,3304.3,0.97749893]
[1768700646948,1.3329354,3305.4,3304.3,0.97749893]
[1768700647148,1.3329354,3305.3,3304.3,0.97749893]
[1768700647353,1.3329354,3305.2,3304.3,0.97749893]
[1768700647549,0.13144091,3305.7,3304.3,0.97749893]
[1768700647750,1.33289707,3305.6,3304.3,0.97749893]
[1768700647950,1.33289707,3305.5,3304.3,0.97749893]
[1768700648146,1.33289707,3305.4,3304.3,0.97749893]
[1768700648352,1.33289707,3305.3,3304.5,0.97749893]
[1768700648671,1.33289707,3305.3,3304.2,0.1420828]
[1768700648672,3.35972656,3305.9,3304.7,1.11958173]
[1768700648954,1.32539186,3305.8,3304.7,0.97749893]
[1768700649153,1.32539186,3305.7,3304.7,0.97749893]
[1768700649354,1.32539186,3305.6,3304.7,0.97749893]
[1768700649554,1.32539186,3305.5,3304.7,0.97749893]
[1768700649855,1.32539186,3305.4,3304.7,0.97749893]
[1768700650047,1.3253165,3305.3,3304.7,0.97749893]
[1768700650249,3.49116747,3305.9,3304.7,0.97749893]
[1768700650449,1.32305743,3305.8,3304.5,0.97749893]
[1768700650653,1.32305743,3305.7,3304.5,0.97749893]
[1768700650854,1.32305743,3305.6,3304.5,0.97749893]
[1768700651059,1.32305743,3305.5,3304.5,0.97749893]
[1768700651258,1.32305743,3305.4,3304.5,0.97749893]
[1768700651454,0.26513795,3305.3,3304.5,0.97749893]
[1768700651655,4.4686664,3305.9,3304.5,0.97749893]
[1768700651855,1.32297215,3305.8,3304.5,0.97749893]
[1768700652062,1.32297215,3305.7,3304.5,0.97749893]
[1768700652358,1.32297215,3305.6,3304.5,0.97749893]
[1768700652558,1.32297215,3305.5,3304.5,0.97749893]
[1768700652758,1.32297215,3305.4,3304.5,0.97749893]
[1768700652959,0.26512084,3305.3,3304.5,0.97749893]
[1768700653163,4.4686664,3305.9,3304.5,0.97749893]
[1768700653354,1.32286301,3305.8,3304.5,0.97749893]
[1768700653658,1.32286301,3305.7,3304.5,0.97749893]
[1768700653851,1.32286301,3305.6,3304.5,0.97749893]
[1768700654052,1.32286301,3305.5,3304.5,0.97749893]
[1768700654357,0.26510778,3305.4,3304.5,0.97749893]
[1768700654557,2.83893984,3305.9,3304.5,0.97749893]
[1768700654759,1.32280735,3305.8,3304.5,0.97749893]
[1768700655063,1.32280817,3305.7,3304.5,0.97749893]
[1768700655251,1.32280817,3305.6,3304.5,0.97749893]
[1768700655460,1.32280817,3305.5,3304.5,0.97749893]
[1768700655758,0.26508102,3305.4,3304.5,0.97749893]
[1768700655960,2.83893984,3305.9,3304.5,0.97749893]
[1768700656257,1.32277005,3305.8,3304.5,0.97749893]
[1768700656459,1.32277005,3305.7,3304.5,0.97749893]
[1768700656653,1.32277005,3305.6,3304.5,0.97749893]
[1768700656853,1.32277005,3305.5,3304.5,0.97749893]
[1768700657053,0.26508102,3305.4,3304.5,0.97749893]
[1768700657254,2.83893984,3305.9,3304.5,0.97749893]
[1768700657553,1.32272958,3305.8,3304.5,0.97749893]
[1768700657756,1.32272958,3305.7,3304.5,0.97749893]
[1768700657954,1.32272958,3305.6,3304.5,0.97749893]
[1768700658150,1.32272958,3305.5,3304.5,0.97749893]
[1768700658352,0.26507357,3305.4,3304.5,0.97749893]
[1768700658553,2.83893984,3305.9,3304.5,0.97749893]
[1768700658762,1.32272106,3305.8,3304.5,0.97749893]
[1768700658959,1.32272106,3305.7,3304.5,0.97749893]
[1768700659159,1.32272106,3305.6,3304.5,0.97749893]
[1768700659359,1.32272106,3305.5,3304.5,0.97749893]
[1768700659560,0.26507162,3305.4,3303.9,0.2934628]
[1768700659868,0.13144091,3305.7,3304.4,0.97749893]
[1768700660066,1.32281795,3305.6,3304.4,0.97749893]
[1768700660267,0.13144091,3305.7,3304.4,0.97749893]
[1768700660268,1.32281795,3305.5,3304.4,0.97749893]
[1768700660565,1.32281795,3305.4,3304.4,0.97749893]
[1768700660862,0.13144091,3305.7,3304.4,0.97749893]
[1768700661063,1.32283647,3305.6,3304.4,0.97749893]
[1768700661264,1.32283647,3305.5,3304.4,0.97749893]
[1768700661468,0.26509568,3305.4,3304.4,0.97749893]
[1768700661658,0.13144091,3305.7,3304.4,0.97749893]
[1768700661958,1.32294368,3305.6,3304.4,0.97749893]
[1768700662161,1.32294368,3305.5,3304.4,0.97749893]
[1768700662359,0.26511634,3305.4,3304.4,0.97749893]
[1768700662659,0.13144091,3305.7,3304.4,0.97749893]
[1768700662861,1.3229579,3305.6,3304.4,0.97749893]
[1768700663161,1.3229579,3305.5,3304.4,0.97749893]
[1768700663466,0.26511897,3305.4,3304.4,0.97749893]
[1768700663677,0.13144091,3305.7,3304.4,0.97749893]
[1768700663856,1.32297809,3305.6,3304.4,0.97749893]
[1768700664156,1.32297809,3305.5,3304.4,0.97749893]
[1768700664357,1.32297809,3305.4,3304.4,0.97749893]
[1768700664559,0.13144091,3305.7,3304.4,0.97749893]
[1768700664760,1.32300417,3305.6,3304.4,0.97749893]
[1768700664960,1.32300417,3305.5,3304.4,0.97749893]
[1768700665160,1.32300417,3305.4,3304.4,0.97749893]
[1768700665368,0.13144091,3305.7,3304.4,0.97749893]
[1768700665669,1.32304006,3305.6,3304.4,0.97749893]
[1768700665967,1.32304006,3305.5,3304.4,0.97749893]
[1768700666168,1.32304006,3305.4,3304.4,0.97749893]
[1768700666362,0.13144091,3305.7,3304.4,0.97749893]
[1768700666567,1.32308027,3305.6,3304.4,0.97749893]
[1768700666768,1.32308027,3305.5,3304.0,1.10978433]
[1768700666970,1.32308027,3305.4,3304.4,0.97749893]
[1768700667266,0.13144091,3305.7,3304.4,0.97749893]
[1768700667460,1.32311107,3305.6,3304.4,0.97749893]
[1768700667657,1.32311107,3305.5,3304.4,0.97749893]
[1768700667857,1.32311107,3305.4,3304.4,0.97749893]
[1768700668065,0.13144091,3305.7,3304.4,0.97749893]
[1768700668266,1.32311104,3305.6,3304.4,0.97749893]
[1768700668569,1.32311104,3305.5,3304.4,0.97749893]
[1768700668768,1.32311104,3305.4,3304.4,0.97749893]
[1768700668963,0.13144091,3305.7,3304.4,0.97749893]
[1768700669160,1.32313192,3305.6,3304.4,0.97749893]
[1768700669361,1.32313192,3305.5,3304.4,0.97749893]
[1768700669569,1.32313192,3305.4,3304.4,0.97749893]
[1768700669767,0.13144091,3305.7,3304.4,0.97749893]
[1768700669971,1.32316978,3305.6,3304.4,0.97749893]
[1768700670172,1.32316978,3305.5,3304.4,0.97749893]
[1768700670371,1.32316978,3305.4,3304.4,0.97749893]
[1768700670564,1.10893984,3305.7,3304.4,0.97749893]
[1768700670764,1.32318426,3305.6,3304.4,0.97749893]
[1768700671062,1.32318426,3305.5,3304.4,0.97749893]
[1768700671269,1.32318426,3305.4,3304.4,0.97749893]
[1768700671465,1.10893984,3305.7,3304.4,0.97749893]
[1768700671672,1.32323252,3305.6,3304.4,0.97749893]
[1768700671871,1.32323252,3305.5,3304.4,0.97749893]
[1768700672166,1.32323252,3305.4,3304.4,0.97749893]
[1768700672368,1.10893984,3305.7,3304.4,0.97749893]
[1768700672575,1.32327064,3305.6,3304.4,0.97749893]
[1768700672765,1.32327064,3305.5,3304.4,0.97749893]
[1768700672967,1.32327064,3305.4,3304.4,0.97749893]
[1768700673171,1.10893984,3305.7,3304.4,0.97749893]
[1768700673478,1.32331579,3305.6,3304.4,0.97749893]
[1768700673675,1.32331579,3305.5,3304.4,0.97749893]
[1768700673871,1.32331579,3305.4,3304.4,0.97749893]
[1768700674072,1.10893984,3305.7,3304.4,0.97749893]
[1768700674370,1.32337778,3305.6,3304.4,0.97749893]
[1768700674572,1.32337778,3305.5,3304.4,0.97749893]
[1768700674771,1.32337778,3305.4,3304.4,0.97749893]
[1768700674970,1.10893984,3305.7,3304.4,0.97749893]
[1768700675174,1.32338955,3305.6,3304.4,0.97749893]
[1768700675374,1.32338955,3305.5,3304.4,0.97749893]
[1768700675577,1.32338955,3305.4,3304.4,0.97749893]
[1768700675780,1.10893984,3305.7,3304.4,0.97749893]
[1768700675984,1.32346955,3305.6,3304.4,0.97749893]
[1768700676165,1.32346955,3305.5,3304.4,0.97749893]
[1768700676364,1.32346955,3305.4,3304.3,0.97749893]
[1768700676578,1.10893984,3305.7,3304.3,0.97749893]
[1768700676781,1.32352315,3305.6,3304.3,0.97749893]
[1768700676979,1.32352315,3305.5,3304.3,0.97749893]
[1768700677179,1.32352315,3305.4,3304.3,0.97749893]
[1768700677382,0.26524878,3305.3,3304.3,0.97749893]
[1768700677680,1.10893984,3305.7,3304.3,0.97749893]
[1768700677980,1.32717011,3305.6,3304.3,0.97749893]
[1768700678175,1.32717011,3305.5,3304.3,0.97749893]
[1768700678377,1.32717011,3305.4,3304.3,0.97749893]
[1768700678578,0.26524887,3305.3,3304.3,0.97749893]
[1768700678872,0.14050925,3305.6,3304.3,0.97749893]
[1768700679078,1.46777624,3305.5,3304.3,0.97749893]
[1768700679278,1.32726699,3305.4,3304.3,0.97749893]
[1768700679584,0.14050925,3305.5,3304.3,0.97749893]
[1768700679585,0.26526761,3305.3,3304.3,0.97749893]
[1768700679782,0.14050925,3305.5,3304.3,0.97749893]
[1768700679982,1.32722105,3305.4,3304.3,0.97749893]
[1768700680286,1.32722105,3305.3,3304.3,0.97749893]
[1768700680584,0.14050925,3305.5,3304.3,0.97749893]
[1768700680775,1.32712969,3305.4,3304.3,0.97749893]
[1768700680977,1.32712969,3305.3,3304.3,0.97749893]
[1768700681182,0.14050925,3305.5,3304.3,0.97749893]
[1768700681384,1.32708222,3305.4,3304.3,0.97749893]
[1768700681578,1.32708222,3305.3,3304.3,0.97749893]
[1768700681786,0.14050925,3305.5,3304.3,0.97749893]
[1768700681987,1.32707042,3305.4,3304.3,0.97749893]
[1768700682282,1.32707042,3305.3,3304.3,0.97749893]
[1768700682485,0.14050925,3305.5,3304.3,0.97749893]
[1768700682684,1.32702715,3305.4,3304.3,0.97749893]
[1768700682884,1.32702715,3305.3,3304.3,0.97749893]
[1768700683087,0.14050925,3305.5,3304.3,0.97749893]
[1768700683280,1.32700157,3305.4,3304.3,0.97749893]
[1768700683484,1.32700157,3305.3,3304.3,0.97749893]
[1768700683786,0.14050925,3305.5,3304.3,0.97749893]
[1768700683985,1.32699761,3305.4,3304.3,0.97749893]
[1768700684181,1.32699761,3305.3,3304.3,0.97749893]
[1768700684381,0.14050925,3305.5,3304.3,0.97749893]
[1768700684581,1.32697453,3305.4,3304.3,0.97749893]
[1768700684781,1.32697453,3305.3,3304.3,0.97749893]
[1768700684982,0.14050925,3305.5,3304.3,0.97749893]
[1768700685282,1.32697435,3305.4,3304.3,0.97749893]
[1768700685474,1.32697435,3305.3,3304.3,0.97749893]